bitfinex/quotes_ETHUSD_20251126
["timestamp","ask_amount","ask_price","bid_price","bid_amount"]
[1764144197895,5.78729035,2945.2,2944.8,0.001]
[1764144200185,5.57029035,2945.2,2944.8,0.001]
[1764144200494,5.78629035,2945.2,2944.8,0.001]
[1764144204204,4.74245326,2945.2,2945.1,0.4736]
[1764144204391,4.84219035,2945.2,2945.1,0.4736]
[1764144205009,5.30189035,2945.2,2945.1,0.001]
[1764144206706,5.78629035,2945.2,2945.1,0.001]
[1764144206903,5.30189035,2945.2,2945.1,0.001]
[1764144207877,5.78629035,2945.2,2945.1,0.001]
[1764144208416,13.19879294,2945.2,2945.1,0.001]
[1764144208717,13.19879294,2945.2,2944.8,0.001]
[1764144208718,1.2308352,2944.9,2944.8,0.001]
[1764144209025,1.05054109,2944.9,2944.8,0.001]
[1764144209175,1.53494109,2944.9,2944.8,0.001]
[1764144209693,2.2605352,2944.9,2944.8,0.001]
[1764144210515,5.65623624,2944.9,2944.8,0.001]
[1764144212185,8.99381324,2944.9,2944.8,0.001]
[1764144213120,5.65623624,2944.9,2944.8,0.001]
[1764144213321,0.50524109,2944.6,2944.5,0.001]
[1764144213507,1.18094109,2944.6,2944.5,0.001]
[1764144213815,5.6962926,2944.6,2944.5,0.001]
[1764144214014,5.2118926,2944.6,2944.5,0.001]
[1764144214320,1.4468352,2944.6,2944.5,0.4736]
[1764144214897,4.8428822,2944.6,2944.5,0.4736]
[1764144215215,4.6268822,2944.6,2944.5,0.9462]
[1764144215407,4.8428822,2944.6,2944.5,0.9462]
[1764144215608,4.33764111,2944.6,2944.5,0.9462]
[1764144216182,4.74314511,2944.6,2944.5,0.9462]
[1764144217485,4.8428822,2944.6,2944.5,0.9462]
[1764144220250,4.52714511,2944.6,2944.5,0.9462]
[1764144220426,4.74314511,2944.6,2944.5,0.9462]
[1764144221118,4.8428822,2944.6,2944.5,0.4736]
[1764144221313,5.3025822,2944.6,2944.5,0.001]
[1764144221537,5.7869822,2944.6,2944.5,0.001]
[1764144222857,5.3025822,2944.6,2944.5,0.001]
[1764144223752,4.8428822,2944.6,2944.5,0.001]
[1764144225572,5.3140822,2944.6,2944.5,0.001]
[1764144225912,4.8428822,2944.6,2944.5,0.001]
[1764144226117,4.8428822,2944.6,2944.5,0.4537]
[1764144227042,4.8428822,2944.6,2944.5,0.9068]
[1764144227554,4.8428822,2944.6,2944.5,0.4537]
[1764144229247,4.8428822,2944.6,2944.5,0.9068]
[1764144229451,4.74314511,2944.6,2944.5,0.9068]
[1764144229955,3.612047,2944.6,2944.5,0.9068]
[1764144230252,3.71178409,2944.6,2944.5,0.9068]
[1764144230547,3.71178409,2944.6,2944.5,0.4537]
[1764144232652,4.4373782,2944.6,2944.5,0.9068]
[1764144233269,3.71178409,2944.6,2944.5,0.9068]
[1764144233939,4.4373782,2944.6,2944.5,0.4537]
[1764144235955,4.33764111,2944.6,2944.5,0.4537]
[1764144236161,4.4373782,2944.6,2944.5,0.4537]
[1764144236362,4.4373782,2944.6,2944.5,0.001]
[1764144236863,4.4373782,2944.6,2944.5,0.4537]
[1764144238767,4.4373782,2944.6,2944.5,0.9068]
[1764144238963,4.12164111,2944.6,2944.5,0.9068]
[1764144239163,4.33764111,2944.6,2944.5,0.9068]
[1764144242035,0.002,2944.8,2944.5,0.9068]
[1764144242239,0.002,2944.8,2944.7,0.4527]
[1764144242435,0.002,2944.8,2944.7,0.9163]
[1764144243783,0.002,2945.4,2945.0,0.4726]
[1764144244079,0.002,2945.4,2945.3,3.23791741]
[1764144244449,0.002,2945.4,2945.3,1.0541]
[1764144245165,0.002,2945.4,2945.3,0.5905]
[1764144245657,0.002,2945.4,2945.3,1.0541]
[1764144246046,1.13109811,2945.3,2944.6,0.4636]
[1764144246245,0.09973709,2945.0,2944.5,0.001]
[1764144246460,0.216,2944.9,2944.5,0.001]
[1764144246684,0.216,2944.9,2944.6,0.4636]
[1764144246980,4.33729515,2944.9,2944.8,0.4726]
[1764144248665,0.216,2944.9,2944.8,0.9362]
[1764144248862,3.61170104,2944.9,2944.8,0.9362]
[1764144249063,3.61170104,2944.9,2944.8,0.4726]
[1764144249372,3.61170104,2944.9,2944.8,0.9362]
[1764144249373,3.39570104,2944.9,2944.8,0.9362]
[1764144249676,3.39570104,2944.9,2944.5,0.4646]
[1764144249677,6.79140208,2944.9,2944.5,0.4646]
[1764144249888,6.89113917,2944.9,2944.5,0.001]
[1764144250068,6.79140208,2944.9,2944.6,0.4636]
[1764144250268,4.12129515,2944.9,2944.8,0.4726]
[1764144250468,4.22103224,2944.9,2944.8,0.4726]
[1764144250672,4.12129515,2944.9,2944.8,0.4726]
[1764144251384,4.12129515,2944.9,2944.8,0.9362]
[1764144251782,3.39547313,2945.1,2944.8,0.9362]
[1764144251997,3.39547313,2945.1,2944.5,0.001]
[1764144251998,0.002,2945.4,2945.3,0.5905]
[1764144252401,0.002,2945.4,2945.3,1.0541]
[1764144258407,0.002,2945.4,2945.3,0.4726]
[1764144258594,0.002,2945.4,2945.3,0.9452]
[1764144259803,0.002,2945.4,2945.3,0.4726]
[1764144261205,0.002,2945.4,2945.3,0.9452]
[1764144261800,3.3971246,2945.4,2945.3,0.9452]
[1764144263194,3.3971246,2945.4,2944.8,0.001]
[1764144263195,1.2308352,2945.3,2944.8,0.001]
[1764144263394,0.6656,2944.9,2944.8,0.001]
[1764144263595,1.287104,2944.9,2944.8,0.001]
[1764144263795,5.75883624,2944.9,2944.8,0.001]
[1764144264105,5.97483624,2944.9,2944.8,0.001]
[1764144264810,5.40839915,2944.9,2944.8,0.001]
[1764144265105,5.50813624,2944.9,2944.8,0.001]
[1764144265979,4.74279915,2944.9,2944.8,0.4736]
[1764144266181,4.52679915,2944.9,2944.8,0.4736]
[1764144266382,4.74279915,2944.9,2944.8,0.4736]
[1764144266914,4.33729515,2944.9,2944.8,0.4736]
[1764144268108,4.22103224,2944.9,2944.8,0.001]
[1764144268314,4.43703224,2944.9,2944.8,0.4736]
[1764144270306,3.61170104,2944.9,2944.8,0.4736]
[1764144271879,5.28509515,2944.9,2944.8,0.001]
[1764144272103,5.38483224,2944.9,2944.8,0.001]
[1764144272695,4.91813224,2944.9,2944.8,0.001]
[1764144273593,5.38483224,2944.9,2944.8,0.001]
[1764144274419,4.91813224,2944.9,2944.8,0.001]
[1764144274882,5.38483224,2944.9,2944.8,0.001]
[1764144275681,4.91813224,2944.9,2944.8,0.001]
[1764144277488,4.43703224,2944.9,2944.8,0.4736]
[1764144277687,4.33729515,2944.9,2944.8,0.4736]
[1764144283226,4.33729515,2944.9,2944.8,0.9462]
[1764144283622,0.216,2944.9,2944.8,0.9462]
[1764144283925,3.39570104,2944.9,2944.8,0.9462]
[1764144285326,3.39570104,2944.9,2944.8,0.4736]
[1764144285624,6.79094088,2945.1,2944.8,0.4736]
[1764144285838,6.79094088,2945.1,2944.9,0.4726]
[1764144286928,3.39547044,2945.1,2945.0,0.4726]
[1764144288726,3.39547044,2945.1,2945.0,0.9452]
[1764144289816,3.39536206,2945.2,2945.0,0.9452]
[1764144290020,3.39536206,2945.2,2944.8,0.001]
[1764144290021,3.39536206,2945.2,2945.1,0.4726]
[1764144290198,3.39536206,2945.2,2945.1,0.9452]
[1764144290400,3.39536206,2945.2,2945.1,1.0631]
[1764144291542,3.611296,2945.3,2945.1,1.0631]
[1764144291713,3.611296,2945.3,2945.2,0.4726]
[1764144292117,1.13109811,2945.2,2944.8,0.001]
[1764144292433,0.73383709,2944.9,2944.8,0.001]
[1764144292624,4.66226286,2944.9,2944.8,0.001]
[1764144292820,5.15076286,2944.9,2944.8,0.001]
[1764144293343,8.5464639,2944.9,2944.8,0.001]
[1764144294527,5.96513624,2944.9,2944.8,0.001]
[1764144296944,5.29443624,2944.9,2944.8,0.001]
[1764144297138,4.84253624,2944.9,2944.8,0.001]
[1764144297337,5.47663624,2944.9,2944.8,0.001]
[1764144297521,5.96513624,2944.9,2944.8,0.001]
[1764144297847,5.19469915,2944.9,2944.8,0.001]
[1764144298238,5.68319915,2944.9,2944.8,0.001]
[1764144298544,5.78293624,2944.9,2944.8,0.001]
[1764144304054,12.70051324,2944.9,2944.8,0.001]
[1764144304257,7.9644592,2944.6,2944.5,0.001]
[1764144304549,8.3570592,2944.6,2944.5,0.001]
[1764144304751,8.8180592,2944.6,2944.5,0.001]
[1764144304923,8.71832211,2944.6,2944.5,0.001]
[1764144305128,9.29403555,2944.6,2944.5,0.001]
[1764144305534,8.8180592,2944.6,2944.5,0.001]
[1764144310859,5.4804822,2944.6,2944.5,0.001]
[1764144311062,8.8180592,2944.6,2944.5,0.001]
[1764144312567,8.8180592,2944.6,2944.2,0.001]
[1764144312568,3.84281809,2944.3,2944.2,0.001]
[1764144312766,12.36490074,2944.3,2944.2,0.001]
[1764144313068,16.22229377,2944.3,2944.2,0.001]
[1764144313668,16.35847951,2944.3,2944.2,0.001]
[1764144314961,13.02090251,2944.3,2944.2,0.001]
[1764144315168,16.35847951,2944.3,2944.2,0.001]
[1764144315968,13.02090251,2944.3,2944.2,0.001]
[1764144316143,16.35847951,2944.3,2944.2,0.001]
[1764144316556,15.39253345,2944.3,2944.2,0.001]
[1764144316751,15.39253345,2944.3,2942.8,0.1186]
[1764144316752,0.09973709,2942.9,2942.8,0.1186]
[1764144316951,0.31573709,2942.9,2942.8,0.1186]
[1764144317165,3.71374585,2942.9,2942.8,1.0638]
[1764144319141,3.39800876,2942.9,2942.8,1.0638]
[1764144319348,3.61400876,2942.9,2942.8,1.0638]
[1764144319670,3.39792257,2943.0,2942.8,1.0638]
[1764144319870,0.216,2942.9,2942.8,0.1186]
[1764144320384,0.216,2942.9,2942.8,1.0638]
[1764144321583,3.39662375,2944.1,2942.8,1.0638]
[1764144321750,0.09973709,2943.8,2942.9,0.9452]
[1764144322064,0.09973709,2943.8,2943.7,0.5912]
[1764144322271,0.50524109,2943.8,2943.7,0.5912]
[1764144322459,0.50524109,2943.8,2943.7,1.0638]
[1764144322845,0.405504,2943.7,2943.2,0.1186]
[1764144323047,0.09973709,2943.2,2942.8,0.1186]
[1764144323249,0.216,2943.1,2942.9,0.4726]
[1764144323456,3.3978933,2943.0,2942.8,0.1186]
[1764144323683,6.7957866,2943.0,2942.8,0.1186]
[1764144323891,3.3978933,2943.0,2942.9,0.4726]
[1764144324055,0.09973709,2942.9,2942.5,0.1186]
[1764144324252,0.09973709,2942.9,2942.5,0.5912]
[1764144324478,0.09973709,2942.9,2942.5,0.1186]
[1764144324674,0.09973709,2942.9,2942.6,0.4726]
[1764144324877,0.09973709,2942.9,2942.8,0.4726]
[1764144325355,0.09973709,2942.9,2942.8,0.9452]
[1764144326292,3.39800876,2942.9,2942.8,0.9452]
[1764144326591,0.216,2943.0,2942.8,0.9452]
[1764144326797,0.216,2943.0,2942.9,0.9452]
[1764144328087,1.13109811,2943.7,2942.9,0.9452]
[1764144328296,4.6279205,2943.7,2943.6,0.4726]
[1764144328499,4.8439205,2943.7,2943.6,0.4726]
[1764144328661,8.2410058,2943.7,2943.4,0.1186]
[1764144329164,11.53835401,2943.7,2942.8,0.001]
[1764144329378,0.09973709,2943.5,2942.8,0.4736]
[1764144330289,6.79486308,2943.4,2942.8,0.4736]
[1764144330490,0.94159411,2943.3,2942.8,0.4736]
[1764144330696,0.09973709,2943.2,2942.8,0.4736]
[1764144331067,0.09973709,2943.2,2943.1,0.4726]
[1764144332503,3.49739949,2943.2,2943.1,0.4726]
[1764144333999,7.2877248,2943.2,2942.8,0.001]
[1764144334175,6.89506189,2943.2,2942.8,0.001]
[1764144334382,6.89506189,2943.2,2942.8,0.4736]
[1764144335108,3.49739949,2943.2,2943.1,0.4726]
[1764144335406,6.7953248,2943.2,2942.8,0.4736]
[1764144335609,0.6726,2942.9,2942.8,0.001]
[1764144335900,0.216,2942.9,2942.8,0.001]
[1764144336101,0.216,2942.9,2942.8,0.9462]
[1764144336600,3.61400876,2942.9,2942.8,0.9462]
[1764144336812,3.61400876,2942.9,2942.8,0.4736]
[1764144339212,3.71374585,2942.9,2942.8,0.4736]
[1764144340885,0.216,2942.9,2942.8,0.4736]
[1764144341089,0.216,2942.9,2942.8,0.9462]
[1764144342022,0.72559411,2943.2,2942.8,0.9462]
[1764144342210,0.216,2943.1,2943.0,0.1186]
[1764144342609,0.216,2943.1,2943.0,1.0638]
[1764144343010,3.61377785,2943.1,2943.0,1.0638]
[1764144343420,3.61377785,2943.1,2943.0,0.5912]
[1764144345397,3.61377785,2943.1,2943.0,0.4726]
[1764144345586,10.22609724,2943.1,2942.8,0.001]
[1764144346112,7.57639279,2943.1,2942.8,0.001]
[1764144346624,7.11129279,2943.1,2942.8,0.001]
[1764144347291,3.71351494,2943.1,2943.0,0.459]
[1764144347827,7.11129279,2943.1,2942.8,0.001]
[1764144348696,3.71351494,2943.1,2943.0,0.459]
[1764144348896,7.0115557,2943.1,2942.8,0.001]
[1764144349198,3.61377785,2943.1,2943.0,0.459]
[1764144350399,7.0115557,2943.1,2942.8,0.001]
[1764144350896,1.16064109,2942.9,2942.8,0.001]
[1764144351113,5.28424396,2942.9,2942.8,0.001]
[1764144351411,5.75274396,2942.9,2942.8,0.001]
[1764144353236,5.65300687,2942.9,2942.8,0.001]
[1764144353446,8.61844841,2942.9,2942.8,0.001]
[1764144354516,5.96874396,2942.9,2942.8,0.001]
[1764144358075,5.96874396,2942.9,2942.5,0.001]
[1764144358214,4.5392209,2942.3,2942.2,0.001]
[1764144358534,1.34709811,2942.3,2942.2,0.001]
[1764144358730,1.34709811,2942.3,2942.2,0.46]
[1764144359444,4.5297998,2942.3,2942.2,0.001]
[1764144359647,5.2108998,2942.3,2942.2,0.001]
[1764144359813,5.77913689,2942.3,2942.2,0.001]
[1764144361031,4.7457998,2942.3,2942.2,0.46]
[1764144362214,4.7457998,2942.3,2942.2,0.001]
[1764144362544,5.77463689,2942.3,2942.2,0.001]
[1764144363445,5.6748998,2942.3,2942.2,0.001]
[1764144363652,5.0012998,2942.3,2942.2,0.001]
[1764144363854,4.5297998,2942.3,2942.2,0.4736]
[1764144364058,3.39858622,2942.4,2942.2,0.4736]
[1764144364228,4.18593878,2942.3,2942.2,0.001]
[1764144364555,4.59144278,2942.3,2942.2,0.001]
[1764144364740,5.04904278,2942.3,2942.2,0.001]
[1764144365054,5.04904278,2942.3,2942.2,0.4736]
[1764144365055,4.11994278,2942.3,2942.2,0.4736]
[1764144365763,3.80420569,2942.3,2942.2,0.4736]
[1764144365929,4.02020569,2942.3,2942.2,0.4736]
[1764144366565,4.84553689,2942.3,2942.2,0.001]
[1764144368868,3.39870169,2942.3,2942.2,0.5915]
[1764144369067,3.61470169,2942.3,2942.2,1.058]
[1764144371836,3.61470169,2942.3,2942.2,0.5915]
[1764144372042,3.61470169,2942.3,2942.2,1.058]
[1764144372958,3.61470169,2942.3,2942.2,0.001]
[1764144373141,4.08620169,2942.3,2942.2,0.001]
[1764144374152,3.61470169,2942.3,2942.2,0.001]
[1764144375166,4.10250169,2942.3,2942.2,0.001]
[1764144375347,3.61470169,2942.3,2942.2,0.4535]
[1764144375543,0.09973709,2942.7,2942.2,0.9071]
[1764144375769,0.216,2942.6,2942.2,0.4546]
[1764144375975,0.216,2942.6,2942.3,0.4536]
[1764144376163,0.216,2942.6,2942.5,0.4525]
[1764144376765,0.80353709,2942.6,2942.2,0.001]
[1764144376971,2.65077507,2942.3,2942.2,0.001]
[1764144377472,6.04947676,2942.3,2942.2,0.4535]
[1764144378753,6.04947676,2942.3,2942.2,0.001]
[1764144380255,6.04947676,2942.3,2942.2,0.4535]
[1764144380555,6.04947676,2942.3,2942.2,0.001]
[1764144380556,6.53727676,2942.3,2942.2,0.001]
[1764144381077,7.01817676,2942.3,2942.2,0.001]
[1764144381284,7.11791385,2942.3,2942.2,0.001]
[1764144381587,7.84350796,2942.3,2942.2,0.001]
[1764144382683,8.24901196,2942.3,2942.2,0.001]
[1764144384482,7.28031196,2942.3,2942.2,0.001]
[1764144386489,4.1242958,2942.3,2942.2,0.001]
[1764144386687,3.39870169,2942.3,2942.2,0.4535]
[1764144386859,3.61470169,2942.3,2942.2,0.9071]
[1764144387060,0.216,2942.3,2942.2,0.9071]
[1764144387262,0.002,2942.5,2942.2,0.9071]
[1764144387564,0.002,2942.5,2942.4,0.4525]
[1764144388054,0.002,2942.5,2942.4,0.9061]
[1764144390952,0.002,2942.5,2942.2,0.001]
[1764144390953,0.4898,2942.5,2942.2,0.001]
[1764144391159,0.621504,2942.4,2942.2,0.001]
[1764144391366,0.216,2942.4,2942.3,0.4525]
[1764144392464,0.216,2942.4,2942.2,0.001]
[1764144392698,0.58753709,2942.3,2942.2,0.001]
[1764144392994,3.98623878,2942.3,2942.2,0.001]
[1764144393286,4.46713878,2942.3,2942.2,0.001]
[1764144393862,3.88650169,2942.3,2942.2,0.001]
[1764144394062,4.36740169,2942.3,2942.2,0.001]
[1764144394267,3.39870169,2942.3,2942.2,0.4535]
[1764144395397,3.88650169,2942.3,2942.2,0.001]
[1764144397193,3.39870169,2942.3,2942.2,0.001]
[1764144397792,3.88650169,2942.3,2942.2,0.001]
[1764144398203,3.39870169,2942.3,2942.2,0.5714]
[1764144398412,3.39870169,2942.3,2942.2,1.025]
[1764144399005,3.39870169,2942.3,2942.2,0.4535]
[1764144399208,3.39870169,2942.3,2942.2,0.001]
[1764144399598,3.88650169,2942.3,2942.2,0.001]
[1764144401806,3.39870169,2942.3,2942.2,0.001]
[1764144403013,3.39870169,2942.3,2942.2,0.4535]
[1764144403513,3.39870169,2942.3,2942.2,0.9071]
[1764144403710,3.39870169,2942.3,2942.2,0.4535]
[1764144405495,3.39870169,2942.3,2942.2,0.92]
[1764144406422,3.39870169,2942.3,2942.2,0.4535]
[1764144407625,3.39870169,2942.3,2942.2,0.92]
[1764144408008,0.216,2942.4,2942.2,0.92]
[1764144408325,0.216,2942.4,2942.3,0.9391]
[1764144408827,3.40054001,2942.5,2942.3,0.9391]
[1764144408828,0.002,2942.5,2942.3,0.9391]
[1764144409126,0.002,2942.5,2942.4,0.9391]
[1764144411996,0.002,2942.5,2942.4,0.4726]
[1764144412399,0.002,2942.5,2942.4,0.9391]
[1764144413023,0.002,2942.5,2942.4,4.33768618]
[1764144413826,0.002,2942.5,2942.4,0.9391]
[1764144414054,0.002,2942.5,2942.4,0.4726]
[1764144414362,0.002,2942.5,2942.4,0.9391]
[1764144414746,0.002,2942.5,2942.4,0.4726]
[1764144415462,0.002,2942.5,2942.4,0.9391]
[1764144416161,0.002,2942.5,2942.4,0.4726]
[1764144418357,0.002,2942.5,2942.4,0.4736]
[1764144420369,0.002,2942.5,2942.4,0.9401]
[1764144420679,0.002,2942.8,2942.5,0.72559411]
[1764144420831,0.002,2942.8,2942.7,3.78325726]
[1764144421031,0.002,2942.8,2942.7,1.41419411]
[1764144421232,0.002,2942.8,2942.7,1.66469411]
[1764144421429,0.002,2942.8,2942.7,0.4726]
[1764144423969,0.002,2942.8,2942.7,0.9391]
[1764144425039,0.002,2942.8,2942.7,0.4726]
[1764144427649,0.002,2942.8,2942.7,0.9391]
[1764144428273,0.002,2942.8,2942.7,0.4726]
[1764144428687,0.4953,2942.8,2942.4,0.001]
[1764144428888,0.002,2942.8,2942.7,0.4726]
[1764144429473,0.002,2942.8,2942.7,0.9391]
[1764144430746,0.002,2942.8,2942.7,0.97308239]
[1764144431145,0.002,2942.8,2942.7,4.3713221]
[1764144431347,0.002,2942.8,2942.7,0.97308239]
[1764144431574,0.002,2942.8,2942.7,0.9391]
[1764144431780,0.002,2942.8,2942.7,4.33733971]
[1764144433450,0.002,2942.8,2942.7,8.14733971]
[1764144434257,0.002,2942.8,2942.7,8.87293382]
[1764144434788,0.0002,2942.8,2942.7,9.27843782]
[1764144435077,0.0002,2942.8,2942.7,9.41456331]
[1764144439516,0.0002,2942.8,2942.7,9.41256331]
[1764144439688,0.0002,2942.8,2942.7,9.62856331]
[1764144448710,0.0002,2942.8,2942.7,5.60256331]
[1764144448922,0.0002,2942.8,2942.7,5.81856331]
[1764144449405,0.0002,2942.8,2942.7,5.8525457]
[1764144450721,0.0002,2942.8,2942.7,5.3880457]
[1764144450897,0.0002,2942.8,2942.7,7.72312646]
[1764144451216,0.0002,2942.8,2942.7,8.40362646]
[1764144452620,0.0002,2942.8,2942.7,8.46630191]
[1764144452920,0.0002,2942.8,2942.7,7.78580191]
[1764144453133,0.0002,2942.8,2942.7,4.08683971]
[1764144453332,0.0002,2942.8,2942.4,0.001]
[1764144453333,0.4758,2942.8,2942.4,0.001]
[1764144453511,0.4744,2942.5,2942.4,0.001]
[1764144453995,0.9686,2942.5,2942.4,0.001]
[1764144455318,4.36707068,2942.5,2942.4,0.001]
[1764144461035,0.405504,2942.4,2942.2,0.001]
[1764144461245,0.405504,2942.4,2942.1,0.001]
[1764144461246,0.405504,2942.2,2942.1,0.001]
[1764144461415,0.878704,2942.2,2942.1,0.001]
[1764144461619,1.47264109,2942.2,2942.1,0.001]
[1764144462110,1.47264109,2942.2,2940.1,0.25363398]
[1764144462111,6.79948322,2941.4,2940.2,3.40111306]
[1764144462550,0.6875,2941.3,2940.1,3.51861831]
[1764144462853,0.09973709,2941.2,2940.1,0.1174]
[1764144463044,0.59393709,2941.2,2940.1,0.72559411]
[1764144463450,0.59393709,2941.2,2940.0,3.40128135]
[1764144463647,0.59393709,2941.2,2940.1,0.72559411]
[1764144463957,0.4942,2941.2,2940.1,1.31559411]
[1764144464154,3.4000884,2941.1,2940.3,0.72559411]
[1764144464458,3.89420891,2941.2,2940.3,0.72559411]
[1764144464627,0.4524,2941.1,2940.3,0.72559411]
[1764144465262,0.6457,2941.3,2940.4,0.4726]
[1764144465441,0.4524,2941.2,2940.3,0.72559411]
[1764144466177,3.4000884,2941.1,2940.4,3.40089783]
[1764144466559,0.1933,2941.3,2940.4,7.01779566]
[1764144466854,3.59316691,2941.3,2940.4,7.49039566]
[1764144467355,0.4524,2941.2,2940.4,4.08949783]
[1764144467559,0.4524,2941.2,2940.4,7.01779566]
[1764144467750,0.1933,2941.3,2940.5,0.50660782]
[1764144467941,4.04557605,2941.3,2940.5,0.4726]
[1764144468430,4.04557605,2941.3,2940.6,3.40066653]
[1764144468431,0.6457,2941.3,2940.6,3.40066653]
[1764144468845,4.04556986,2941.3,2940.6,3.40066653]
[1764144469334,4.04556986,2941.3,2940.5,3.40077876]
[1764144469534,0.4524,2941.2,2940.5,3.40077876]
[1764144470378,0.4524,2941.2,2940.5,6.80156093]
[1764144470558,0.1933,2941.3,2940.5,6.80156093]
[1764144470865,3.59316234,2941.3,2940.6,0.4726]
[1764144471046,0.4524,2941.2,2940.5,3.40077876]
[1764144471471,0.4524,2941.2,2940.5,3.40177876]
[1764144471647,0.4524,2941.2,2940.5,6.80256093]
[1764144472448,0.4524,2941.2,2940.5,3.40177876]
[1764144472768,0.4524,2941.2,2940.5,6.80256093]
[1764144473366,3.85238356,2941.2,2940.5,3.40177876]
[1764144473877,0.4524,2941.2,2940.5,6.80256093]
[1764144474974,0.1933,2941.3,2940.6,0.4726]
[1764144475352,0.4524,2941.2,2940.5,6.80256093]
[1764144476174,0.4524,2941.2,2940.5,3.40177876]
[1764144476369,0.4524,2941.2,2940.5,6.80256093]
[1764144476669,0.4524,2941.2,2940.5,0.001]
[1764144476870,3.8524393,2941.2,2940.5,3.61772466]
[1764144477173,0.4524,2941.2,2940.5,7.01850683]
[1764144478171,3.852381,2941.2,2940.5,3.61772466]
[1764144478948,3.852381,2941.2,2940.5,7.01850683]
[1764144479149,0.4524,2941.2,2940.5,7.01850683]
[1764144480485,3.85237312,2941.2,2940.5,7.01850683]
[1764144480792,3.85237312,2941.2,2940.5,3.61772466]
[1764144481091,0.4524,2941.1,2940.5,3.61772466]
[1764144481578,0.4524,2941.1,2940.5,7.01850683]
[1764144482071,0.4524,2941.1,2940.5,3.61772466]
[1764144482479,0.4909,2940.6,2940.5,0.001]
[1764144483099,7.02010403,2940.6,2940.5,0.001]
[1764144483251,7.11984112,2940.6,2940.5,0.001]
[1764144484570,4.46700362,2940.6,2940.5,0.001]
[1764144484954,4.36726653,2940.6,2940.5,0.001]
[1764144485599,0.9666,2940.6,2940.5,0.001]
[1764144485893,0.4909,2940.6,2940.5,0.001]
[1764144486099,0.9666,2940.6,2940.5,0.001]
[1764144486450,4.36726653,2940.6,2940.5,0.001]
[1764144486864,0.9666,2940.6,2940.5,0.001]
[1764144487265,4.36726653,2940.6,2940.5,0.001]
[1764144487852,0.9666,2940.6,2940.5,0.001]
[1764144488057,4.36726653,2940.6,2940.5,0.001]
[1764144489467,0.9666,2940.6,2940.5,0.001]
[1764144490091,4.36726653,2940.6,2940.5,0.001]
[1764144490756,0.4909,2940.6,2940.5,0.001]
[1764144491703,4.36726653,2940.6,2940.5,0.001]
[1764144492202,0.9666,2940.6,2940.5,0.001]
[1764144492779,0.4909,2940.6,2940.5,0.001]
[1764144492990,0.216,2940.8,2940.5,0.001]
[1764144492991,0.216,2940.8,2940.5,0.4736]
[1764144493178,0.1933,2941.3,2940.7,0.4726]
[1764144493504,0.216,2941.2,2940.7,0.4726]
[1764144493708,0.1885,2941.5,2940.7,0.9452]
[1764144494065,0.6644,2941.5,2940.7,0.9792055]
[1764144494259,0.6644,2941.5,2940.7,0.9452]
[1764144494768,0.1885,2941.5,2940.7,0.9452]
[1764144495068,0.4695,2940.8,2940.5,0.001]
[1764144495299,0.3647,2940.6,2940.5,0.001]
[1764144495673,0.216,2941.0,2940.5,3.87437727]
[1764144495863,0.216,2941.0,2940.6,0.4726]
[1764144496066,0.6919,2941.0,2940.5,3.87437753]
[1764144496293,0.216,2941.0,2940.5,7.7477597]
[1764144496606,0.216,2941.0,2940.5,4.34697753]
[1764144497307,0.216,2941.0,2940.5,7.7477597]
[1764144497601,4.09176167,2941.3,2940.9,0.4726]
[1764144497903,4.09176167,2941.3,2940.5,6.8025597]
[1764144497904,0.4759,2941.2,2940.5,3.40177753]
[1764144498407,0.4759,2941.2,2940.5,7.2751597]
[1764144499112,0.216,2941.3,2940.5,6.8025597]
[1764144499293,0.216,2941.3,2940.7,6.80110176]
[1764144499654,0.216,2941.3,2940.7,3.40055088]
[1764144499986,0.216,2941.3,2940.7,7.27370176]
[1764144501605,0.1885,2941.5,2940.8,0.50660435]
[1764144501898,7.2012587,2941.8,2940.8,0.4726]
[1764144502107,0.4759,2941.6,2940.8,0.4726]
[1764144502273,0.4759,2941.6,2940.7,6.80110176]
[1764144502274,0.4695,2940.9,2940.7,0.216]
[1764144502469,0.4695,2940.9,2940.8,3.81]
[1764144503194,0.9454,2940.9,2940.8,3.81]
[1764144503631,4.34571963,2940.9,2940.8,3.81]
[1764144503806,8.06177635,2940.9,2940.5,0.001]
[1764144503996,0.3665,2940.6,2940.5,0.001]
[1764144504497,0.8424,2940.6,2940.5,0.001]
[1764144505731,4.24306653,2940.6,2940.5,0.001]
[1764144508004,0.8424,2940.6,2940.5,0.001]
[1764144508207,4.24306653,2940.6,2940.5,0.001]
[1764144510330,5.37416464,2940.6,2940.5,0.001]
[1764144510634,5.47390173,2940.6,2940.5,0.001]
[1764144512331,5.37416464,2940.6,2940.5,0.001]
[1764144512647,4.45906653,2940.6,2940.5,0.001]
[1764144512842,5.28439773,2940.6,2940.5,0.001]
[1764144513936,5.18466064,2940.6,2940.5,0.001]
[1764144514703,5.28439773,2940.6,2940.5,0.001]
[1764144516426,5.18466064,2940.6,2940.5,0.001]
[1764144516615,5.28439773,2940.6,2940.5,0.001]
[1764144517443,5.68990173,2940.6,2940.5,0.001]
[1764144520149,4.70876064,2940.6,2940.5,0.001]
[1764144520345,5.18466064,2940.6,2940.5,0.001]
[1764144522222,5.59016464,2940.6,2940.5,0.001]
[1764144522422,5.68990173,2940.6,2940.5,0.001]
[1764144523348,5.59016464,2940.6,2940.5,0.001]
[1764144523847,5.68990173,2940.6,2940.5,0.001]
[1764144526553,5.59016464,2940.6,2940.5,0.001]
[1764144527652,4.70876064,2940.6,2940.5,0.001]
[1764144527855,3.53623289,2941.3,2940.5,0.001]